fUSD/lending_fUSD_20250201
["ID","MTS","AMOUNT","RATE_DAILY","PERIOD"]
[351186078,1738401049453,-1599.09638267,0.00016605,2]
[351186079,1738401049464,-1599.09638267,0.00016605,2]
[351186080,1738401049474,-1599.09638267,0.00016605,2]
[351186081,1738401049489,-1599.09638267,0.00016605,2]
[351186082,1738401049500,-1599.09638267,0.00016605,2]
[351186083,1738401049510,-1599.09638267,0.00016605,2]
[351186084,1738401049521,-1599.09638267,0.00016605,2]
[351186085,1738401049531,-1599.09638267,0.00016605,2]
[351186086,1738401049542,-1599.09638267,0.00016605,2]
[351186087,1738401049551,-1599.09638267,0.00016605,2]
[351186088,1738401049562,-1599.09638267,0.00016605,2]
[351186089,1738401049573,-1599.09638267,0.00016605,2]
[351186090,1738401049583,-1599.09638267,0.00016605,2]
[351186091,1738401049593,-1599.09638267,0.00016605,2]
[351186092,1738401049603,-1599.09638267,0.00016605,2]
[351186093,1738401049612,-1599.09638267,0.00016605,2]
[351186094,1738401049622,-1599.09638267,0.00016605,2]
[351186095,1738401049632,-1599.09638267,0.00016605,2]
[351186096,1738401049641,-1599.09638267,0.00016605,2]
[351186097,1738401049651,-1599.09638267,0.00016605,2]
[351186098,1738401049661,-1599.09638267,0.00016605,2]
[351186099,1738401049671,-1599.09638267,0.00016605,2]
[351186100,1738401049681,-1599.09638267,0.00016605,2]
[351186101,1738401049691,-1599.09638267,0.00016605,2]
[351186102,1738401049701,-1599.09638267,0.00016605,2]
[351186103,1738401049711,-1599.09638267,0.00016605,2]
[351186104,1738401049721,-1599.09638267,0.00016605,2]
[351186105,1738401049731,-1599.09638267,0.00016605,2]
[351186106,1738401049740,-1599.09638267,0.00016605,2]
[351186107,1738401049750,-1599.09638267,0.00016605,2]
[351186108,1738401049760,-1599.09638267,0.00016605,2]
[351186109,1738401049770,-1599.09638267,0.00016605,2]
[351186110,1738401049780,-1599.09638267,0.00016605,2]
[351186111,1738401049790,-1599.09638267,0.00016605,2]
[351186112,1738401049799,-1599.09638267,0.00016605,2]
[351186113,1738401049809,-1599.09638267,0.00016605,2]
[351186114,1738401049820,-1599.09638267,0.00016605,2]
[351186115,1738401049830,-1599.09638267,0.00016605,2]
[351186116,1738401049839,-500.0,0.00016605,2]
[351186117,1738401049849,-500.0,0.00016605,2]
[351186118,1738401049859,-280.38808493,0.00016605,2]
[351186119,1738401049868,-500.0,0.00016605,2]
[351186120,1738401049878,-501.05505135,0.00016605,2]
[351186121,1738401049888,-500.0,0.00016605,2]
[351186122,1738401049897,-500.0,0.00016605,2]
[351186123,1738401049909,-500.0,0.00016605,2]
[351186124,1738401049918,-500.0,0.00016605,2]
[351186125,1738401049929,-427.72909319,0.00016605,2]
[351186126,1738401049939,-436.62713417,0.00016605,2]
[351186127,1738401049949,-158.21254189,0.00016605,2]
[351186128,1738401049959,-1311.1442,0.00016609,2]
[351186129,1738401049970,-500.0,0.0001661,2]
[351186130,1738401049980,-500.0,0.00016611,2]
[351186131,1738401049990,-500.0,0.00016611,2]
[351186132,1738401050000,-1545.07,0.00016611,2]
[351186133,1738401050010,-728.37,0.00016611,2]
[351186134,1738401050020,-403.347666,0.00016611,2]
[351186135,1738401050030,-500.0,0.00016611,2]
[351186136,1738401050040,-500.0,0.00016611,2]
[351186137,1738401050051,-500.0,0.00016611,2]
[351186138,1738401050063,-458.963108,0.00016611,2]
[351186139,1738401050074,-670.51,0.00016611,2]
[351186140,1738401050085,-962.01,0.00016611,2]
[351186141,1738401050095,-827.5,0.00016611,2]
[351186142,1738401050106,-1341.52,0.00016611,2]
[351186143,1738401050115,-1156.55,0.00016611,2]
[351186144,1738401050125,-500.0,0.00016611,2]
[351186145,1738401050135,-1037.74,0.00016611,2]
[351186146,1738401050145,-720.85,0.00016611,2]
[351186147,1738401050155,-500.0,0.00016611,2]
[351186148,1738401050165,-500.0,0.00016611,2]
[351186149,1738401050174,-1123.44,0.00016611,2]
[351186150,1738401050185,-500.0,0.00016611,2]
[351186151,1738401050195,-1466.71,0.00016611,2]
[351186152,1738401050204,-500.84,0.00016611,2]
[351186153,1738401050214,-796.85,0.00016611,2]
[351186154,1738401050223,-510.42,0.00016611,2]
[351186155,1738401050233,-1712.14,0.00016611,2]
[351186156,1738401050243,-500.0,0.00016611,2]
[351186157,1738401050252,-516.15,0.00016611,2]
[351186158,1738401050261,-597.49,0.00016611,2]
[351186159,1738401050271,-1060.19,0.00016611,2]
[351186160,1738401050280,-614.86,0.00016611,2]
[351186161,1738401050291,-1709.75,0.00016611,2]
[351186162,1738401050300,-500.0,0.00016708,2]
[351186163,1738401050310,-500.0,0.00016708,2]
[351186164,1738401050322,-828.33,0.00016708,2]
[351186165,1738401050332,-500.0,0.00016708,2]
[351186166,1738401050343,-819.19,0.00016708,2]
[351186167,1738401050352,-500.0,0.00016708,2]
[351186168,1738401050362,-659.36,0.00016708,2]
[351186169,1738401050372,-500.0,0.00016708,2]
[351186170,1738401050382,-500.0,0.00016708,2]
[351186171,1738401050391,-500.0,0.00016708,2]
[351186172,1738401050401,-787.15,0.00016708,2]
[351186173,1738401050411,-672.96,0.00016708,2]
[351186174,1738401050421,-973.42,0.00016708,2]
[351186175,1738401050431,-500.0,0.00016708,2]
[351186176,1738401050441,-500.0,0.00016708,2]
[351186177,1738401050451,-1281.2,0.00016708,2]
[351186178,1738401050461,-500.0,0.00016708,2]
[351186179,1738401050470,-689.89,0.00016708,2]
[351186180,1738401050480,-500.0,0.00016708,2]
[351186181,1738401050490,-500.0,0.00016708,2]
[351186182,1738401050500,-849.27,0.00016708,2]
[351186183,1738401050510,-500.0,0.00016708,2]
[351186184,1738401050519,-500.0,0.00016708,2]
[351186185,1738401050531,-2253.89,0.00016708,2]
[351186186,1738401050541,-500.0,0.00016708,2]
[351186187,1738401050550,-500.0,0.00016708,2]
[351186188,1738401050560,-500.0,0.00016708,2]
[351186189,1738401050571,-1124.36,0.00016708,2]
[351186190,1738401050582,-449.48196341,0.00016709,2]
[351186191,1738401050591,-500.0,0.00016709,2]
[351186192,1738401050601,-214.3,0.00016709,2]
[351186193,1738401050611,-500.0,0.00016709,2]
[351186194,1738401050621,-500.0,0.00016709,2]
[351186195,1738401050631,-500.0,0.00016709,2]
[351186196,1738401050640,-500.0,0.00016709,2]
[351186197,1738401050650,-500.0,0.00016709,2]
[351186198,1738401050660,-500.0,0.00016709,2]
[351186199,1738401050670,-179.16,0.00016709,2]
[351186200,1738401050680,-500.0,0.00016709,2]
[351186201,1738401050691,-261.41,0.00016709,2]
[351186202,1738401050700,-606.93,0.00016709,2]
[351186203,1738401050710,-238.64,0.00016709,2]
[351186204,1738401050719,-500.0,0.00016709,2]
[351186205,1738401050729,-500.0,0.00016709,2]
[351186206,1738401050740,-500.0,0.00016709,2]
[351186207,1738401050749,-165.57,0.00016709,2]
[351186208,1738401050759,-500.0,0.00016709,2]
[351186209,1738401050770,-500.0,0.00016709,2]
[351186210,1738401050780,-500.0,0.00016709,2]
[351186211,1738401050790,-500.0,0.00016709,2]
[351186212,1738401050799,-500.0,0.00016709,2]
[351186213,1738401050809,-226.57,0.00016709,2]
[351186214,1738401050819,-200.0,0.00016709,2]
[351186215,1738401050829,-500.0,0.00016709,2]
[351186216,1738401050839,-500.0,0.00016709,2]
[351186217,1738401050851,-179.22,0.00016709,2]
[351186218,1738401050860,-500.0,0.00016709,2]
[351186219,1738401050870,-489.0,0.00016709,2]
[351186220,1738401050879,-159.57,0.00016709,2]
[351186221,1738401050888,-500.0,0.00016709,2]
[351186222,1738401050898,-500.0,0.00016709,2]
[351186223,1738401050907,-438.63,0.00016709,2]
[351186224,1738401050917,-500.0,0.00016709,2]
[351186225,1738401050927,-500.0,0.00016709,2]
[351186226,1738401050937,-545.16,0.00016709,2]
[351186227,1738401050946,-500.0,0.00016709,2]
[351186228,1738401050956,-500.0,0.00016709,2]
[351186229,1738401050966,-486.74994642,0.00016709,2]
[351186230,1738401050975,-500.0,0.00016709,2]
[351186231,1738401050985,-304.57,0.00016709,2]
[351186232,1738401050994,-500.0,0.00016709,2]
[351186233,1738401051004,-500.0,0.00016709,2]
[351186234,1738401051014,-500.0,0.00016709,2]
[351186235,1738401051023,-500.0,0.00016709,2]
[351186236,1738401051032,-194.17,0.00016709,2]
[351186237,1738401051042,-287.88,0.00016709,2]
[351186238,1738401051052,-500.0,0.00016709,2]
[351186239,1738401051065,-500.0,0.00016709,2]
[351186240,1738401051075,-192.99,0.00016709,2]
[351186241,1738401051086,-154.97,0.00016709,2]
[351186242,1738401051095,-500.0,0.00016709,2]
[351186243,1738401051106,-500.0,0.00016709,2]
[351186244,1738401051117,-500.0,0.00016709,2]
[351186245,1738401051126,-500.0,0.00016709,2]
[351186246,1738401051136,-500.0,0.00016709,2]
[351186247,1738401051148,-500.0,0.00016709,2]
[351186248,1738401051158,-174.98,0.00016709,2]
[351186249,1738401051167,-500.0,0.00016709,2]
[351186250,1738401051177,-153.86,0.00016709,2]
[351186251,1738401051187,-600.53,0.00016709,2]
[351186252,1738401051196,-500.0,0.00016709,2]
[351186253,1738401051206,-546.0,0.00016709,2]
[351186254,1738401051215,-500.0,0.00016709,2]
[351186255,1738401051225,-500.0,0.00016709,2]
[351186256,1738401051235,-500.0,0.00016709,2]
[351186257,1738401051244,-562.03,0.00016709,2]
[351186258,1738401051254,-500.0,0.00016709,2]
[351186259,1738401051264,-500.0,0.00016709,2]
[351186260,1738401051274,-638.59,0.00016709,2]
[351186261,1738401051284,-549.55,0.00016709,2]
[351186262,1738401051294,-500.0,0.00016709,2]
[351186263,1738401051304,-172.39,0.00016709,2]
[351186264,1738401051474,-500.0,0.00016709,2]
[351186265,1738401051484,-336.77,0.00016709,2]
[351186266,1738401051494,-500.0,0.00016709,2]
[351186267,1738401051503,-584.83,0.00016709,2]
[351186268,1738401051513,-500.0,0.00016709,2]
[351186269,1738401051522,-300.52,0.00016709,2]
[351186270,1738401051532,-500.0,0.00016709,2]
[351186271,1738401051541,-500.0,0.00016709,2]
[351186272,1738401051550,-500.0,0.00016709,2]
[351186273,1738401051559,-655.77,0.00016709,2]
[351186274,1738401051569,-1749.31,0.00016709,2]
[351186275,1738401051578,-1989.69,0.00016709,2]
[351186276,1738401051588,-333.85,0.00016709,2]
[351186277,1738401051598,-432.13001069,0.00016709,2]
[351186278,1738401051607,-1303.75,0.00016709,2]
[351186279,1738401051617,-500.0,0.00016709,2]
[351186280,1738401051627,-500.0,0.00016709,2]
[351186281,1738401051636,-500.0,0.00016709,2]
[351186282,1738401051647,-1317.82,0.00016709,2]
[351186283,1738401051657,-500.0,0.00016709,2]
[351186284,1738401051666,-1596.42,0.00016709,2]
[351186285,1738401051676,-220.28,0.00016709,2]
[351186286,1738401051685,-500.0,0.00016709,2]
[351186287,1738401051695,-334.81,0.00016709,2]
[351186288,1738401051704,-500.0,0.00016709,2]
[351186289,1738401051713,-1110.28,0.00016709,2]
[351186290,1738401051722,-500.0,0.00016709,2]
[351186291,1738401051732,-500.0,0.00016709,2]
[351186292,1738401051741,-262.69,0.00016709,2]
[351186293,1738401051751,-1096.39,0.00016709,2]
[351186294,1738401051760,-500.0,0.00016709,2]
[351186295,1738401051769,-1242.54,0.00016709,2]
[351186296,1738401051778,-500.0,0.00016709,2]
[351186297,1738401051788,-570.57,0.00016709,2]
[351186298,1738401051797,-336.6,0.00016709,2]
[351186299,1738401051807,-361.44,0.00016709,2]
[351186300,1738401051817,-1243.6,0.00016709,2]
[351186301,1738401051827,-313.51241469,0.00016709,2]
[351186302,1738401051836,-500.0,0.00016709,2]
[351186303,1738401051846,-500.0,0.00016709,2]
[351186304,1738401051855,-637.31,0.00016709,2]
[351186305,1738401051864,-539.52,0.00016709,2]
[351186306,1738401051873,-516.7,0.00016709,2]
[351186307,1738401051882,-500.0,0.00016709,2]
[351186308,1738401051892,-500.0,0.00016709,2]
[351186309,1738401051901,-500.0,0.00016709,2]
[351186310,1738401051910,-500.0,0.00016709,2]
[351186311,1738401051919,-500.0,0.00016709,2]
[351186312,1738401051929,-500.0,0.00016709,2]
[351186313,1738401051938,-605.5,0.00016709,2]
[351186314,1738401051947,-500.0,0.00016709,2]
[351186315,1738401051957,-244.96,0.00016709,2]
[351186316,1738401051966,-500.0,0.00016709,2]
[351186317,1738401051976,-500.0,0.00016709,2]
[351186318,1738401051985,-500.0,0.00016709,2]
[351186319,1738401051994,-500.0,0.00016709,2]
[351186320,1738401052004,-500.0,0.00016709,2]
[351186321,1738401052014,-556.15,0.00016709,2]
[351186322,1738401052023,-500.0,0.00016709,2]
[351186323,1738401052032,-500.0,0.00016709,2]
[351186324,1738401052042,-500.0,0.00016709,2]
[351186325,1738401052051,-500.0,0.00016709,2]
[351186326,1738401052063,-500.0,0.00016709,2]
[351186327,1738401052075,-500.0,0.00016709,2]
[351186328,1738401052084,-500.0,0.00016709,2]
[351186329,1738401052093,-500.0,0.00016709,2]
[351186330,1738401052103,-500.0,0.00016709,2]
[351186331,1738401052114,-294.46,0.00016709,2]
[351186332,1738401052123,-629.51,0.00016709,2]
[351186333,1738401052132,-500.0,0.00016709,2]
[351186334,1738401052144,-500.0,0.00016709,2]
[351186335,1738401052153,-500.0,0.00016709,2]
[351186336,1738401052162,-1108.9,0.00016709,2]
[351186337,1738401052172,-500.0,0.00016709,2]
[351186338,1738401052181,-500.0,0.00016709,2]
[351186339,1738401052190,-500.0,0.00016709,2]
[351186340,1738401052200,-930.74,0.00016709,2]
[351186341,1738401052210,-500.0,0.00016709,2]
[351186342,1738401052219,-500.0,0.00016709,2]
[351186343,1738401052229,-1866.79,0.00016709,2]
[351186344,1738401052239,-502.18,0.00016709,2]
[351186345,1738401052248,-500.0,0.00016709,2]
[351186346,1738401052258,-5670.26,0.00016709,2]
[351186347,1738401052267,-500.0,0.00016709,2]
[351186348,1738401052276,-500.0,0.00016709,2]
[351186349,1738401052285,-500.0,0.00016709,2]
[351186350,1738401052295,-457.93,0.00016709,2]
[351186351,1738401052304,-500.0,0.00016709,2]
[351186352,1738401052314,-919.19,0.00016709,2]
[351186353,1738401052323,-500.0,0.00016709,2]
[351186354,1738401052332,-500.0,0.00016709,2]
[351186355,1738401052344,-500.0,0.00016709,2]
[351186356,1738401052355,-500.0,0.00016709,2]
[351186357,1738401052364,-500.0,0.00016709,2]
[351186358,1738401052373,-1352.26,0.00016709,2]
[351186359,1738401052383,-500.0,0.00016709,2]
[351186360,1738401052392,-500.0,0.00016709,2]
[351186361,1738401052402,-500.0,0.00016709,2]
[351186362,1738401052411,-5277.67326503,0.0001671,2]
[351186363,1738401052421,-609.97,0.00016711,2]
[351186364,1738401052431,-1027.92,0.00016711,2]
[351186365,1738401052441,-500.0,0.00016711,2]
[351186366,1738401052451,-559.04,0.00016711,2]
[351186367,1738401052461,-891.75,0.00016711,2]
[351186368,1738401052470,-901.89,0.00016711,2]
[351186369,1738401052481,-1000.0,0.00016711,2]
[351186370,1738401052490,-807.16,0.00016711,2]
[351186371,1738401052499,-500.0,0.00016711,2]
[351186372,1738401052509,-1394.54,0.00016711,2]
[351186373,1738401052519,-1429.82,0.00016711,2]
[351186374,1738401052528,-234.76,0.00016712,2]
[351186375,1738401052537,-300.0,0.00016712,2]
[351186376,1738401052546,-500.0,0.00016712,2]
[351186377,1738401052556,-500.0,0.00016712,2]
[351186378,1738401052566,-500.0,0.00016712,2]
[351186379,1738401052575,-500.0,0.00016712,2]
[351186380,1738401052585,-500.0,0.00016712,2]
[351186381,1738401052594,-368.63,0.00016712,2]
[351186382,1738401052603,-638.35862009,0.00016712,2]
[351186383,1738401052614,-500.0,0.00016712,2]
[351186384,1738401052623,-500.0,0.00016712,2]
[351186385,1738401052634,-500.0,0.00016712,2]
[351186386,1738401052645,-500.0,0.00016712,2]
[351186387,1738401052654,-500.0,0.00016712,2]
[351186388,1738401052664,-500.0,0.00016712,2]
[351186389,1738401052673,-500.0,0.00016712,2]
[351186390,1738401052683,-500.0,0.00016712,2]
[351186391,1738401052692,-500.0,0.00016712,2]
[351186392,1738401052702,-500.0,0.00016712,2]
[351186393,1738401052711,-500.0,0.00016712,2]
[351186394,1738401052720,-500.0,0.00016712,2]
[351186395,1738401052729,-500.0,0.00016712,2]
[351186396,1738401052739,-500.0,0.00016712,2]
[351186397,1738401052748,-500.0,0.00016712,2]
[351186398,1738401052757,-500.0,0.00016712,2]
[351186399,1738401052767,-500.0,0.00016712,2]
[351186400,1738401052776,-261.39,0.00016712,2]
[351186401,1738401052786,-500.0,0.00016712,2]
[351186402,1738401052795,-500.0,0.00016712,2]
[351186403,1738401052804,-193.62,0.00016712,2]
[351186404,1738401052814,-500.0,0.00016712,2]
[351186405,1738401052825,-231.7,0.00016712,2]
[351186406,1738401052834,-500.0,0.00016712,2]
[351186407,1738401052843,-500.0,0.00016712,2]
[351186408,1738401052852,-506.06,0.00016712,2]
[351186409,1738401052861,-500.0,0.00016712,2]
[351186410,1738401052871,-500.0,0.00016712,2]
[351186411,1738401052880,-500.0,0.00016712,2]
[351186412,1738401052889,-500.0,0.00016712,2]
[351186413,1738401052899,-500.0,0.00016712,2]
[351186414,1738401052908,-500.0,0.00016712,2]
[351186415,1738401052918,-712.75,0.00016712,2]
[351186416,1738401052927,-500.0,0.00016712,2]
[351186417,1738401052936,-677.3,0.00016712,2]
[351186418,1738401052945,-743.73,0.00016712,2]
[351186419,1738401052954,-500.0,0.00016712,2]
[351186420,1738401052964,-500.0,0.00016712,2]
[351186421,1738401052973,-581.59,0.00016712,2]
[351186422,1738401052982,-500.0,0.00016712,2]
[351186423,1738401052992,-635.11121942,0.00016712,2]
[351186424,1738401053001,-306.2,0.00016712,2]
[351186425,1738401053011,-500.0,0.00016712,2]
[351186426,1738401053020,-500.0,0.00016712,2]
[351186427,1738401053031,-319.43,0.00016748,2]
[351186428,1738401053041,-500.0,0.00016748,2]
[351186429,1738401053050,-1545.07,0.00016748,2]
[351186430,1738401053059,-728.37,0.00016748,2]
[351186431,1738401053075,-403.347666,0.00016748,2]
[351186432,1738401053084,-500.0,0.00016748,2]
[351186433,1738401053094,-500.0,0.00016748,2]
[351186434,1738401053103,-500.0,0.00016748,2]
[351186435,1738401053113,-458.963108,0.00016748,2]
[351186436,1738401053123,-670.51,0.00016748,2]
[351186437,1738401053132,-962.01,0.00016748,2]
[351186438,1738401053143,-827.5,0.00016748,2]
[351186439,1738401053152,-1341.52,0.00016748,2]
[351186440,1738401053161,-1156.55,0.00016748,2]
[351186441,1738401053171,-500.0,0.00016748,2]
[351186442,1738401053180,-1037.74,0.00016748,2]
[351186443,1738401053189,-720.85,0.00016748,2]
[351186444,1738401053198,-500.0,0.00016748,2]
[351186445,1738401053207,-500.0,0.00016748,2]
[351186446,1738401053217,-1123.44,0.00016748,2]
[351186447,1738401053226,-500.0,0.00016748,2]
[351186448,1738401053236,-1466.71,0.00016748,2]
[351186449,1738401053245,-500.84,0.00016748,2]
[351186450,1738401053254,-796.85,0.00016748,2]
[351186451,1738401053263,-510.42,0.00016748,2]
[351186452,1738401053272,-1712.14,0.00016748,2]
[351186453,1738401053281,-500.0,0.00016748,2]
[351186454,1738401053290,-516.15,0.00016748,2]
[351186455,1738401053299,-597.49,0.00016748,2]
[351186456,1738401053308,-1060.19,0.00016748,2]
[351186457,1738401053318,-614.86,0.00016748,2]
[351186458,1738401053327,-1709.75,0.00016748,2]
[351186459,1738401053336,-200.0,0.000168,6]
[351186460,1738401053345,-222.23,0.00016813,2]
[351186461,1738401053354,-500.0,0.00016845,2]
[351186462,1738401053364,-828.33,0.00016845,2]
[351186463,1738401053373,-500.0,0.00016845,2]
[351186464,1738401053382,-500.0,0.00016845,2]
[351186465,1738401053391,-819.19,0.00016845,2]
[351186466,1738401053400,-500.0,0.00016845,2]
[351186467,1738401053410,-659.36,0.00016845,2]
[351186468,1738401053421,-500.0,0.00016845,2]
[351186469,1738401053430,-500.0,0.00016845,2]
[351186470,1738401053440,-500.0,0.00016845,2]
[351186471,1738401053450,-787.15,0.00016845,2]
[351186472,1738401053460,-672.96,0.00016845,2]
[351186473,1738401053470,-973.42,0.00016845,2]
[351186474,1738401053479,-500.0,0.00016845,2]
[351186475,1738401053488,-500.0,0.00016845,2]
[351186476,1738401053498,-1281.2,0.00016845,2]
[351186477,1738401053507,-500.0,0.00016845,2]
[351186478,1738401053517,-689.89,0.00016845,2]
[351186479,1738401053527,-500.0,0.00016845,2]
[351186480,1738401053537,-500.0,0.00016845,2]
[351186481,1738401053545,-849.27,0.00016845,2]
[351186482,1738401053555,-500.0,0.00016845,2]
[351186483,1738401053564,-500.0,0.00016845,2]
[351186484,1738401053573,-2253.89,0.00016845,2]
[351186485,1738401053582,-500.0,0.00016845,2]
[351186486,1738401053591,-500.0,0.00016845,2]
[351186487,1738401053601,-500.0,0.00016845,2]
[351186488,1738401053610,-1124.36,0.00016845,2]
[351186489,1738401053619,-500.0,0.00016846,2]
[351186490,1738401053629,-500.0,0.00016846,2]
[351186491,1738401053638,-500.0,0.00016846,2]
[351186492,1738401053648,-500.0,0.00016846,2]
[351186493,1738401053657,-500.0,0.00016846,2]
[351186494,1738401053666,-500.0,0.00016846,2]
[351186495,1738401053675,-500.0,0.00016846,2]
[351186496,1738401053685,-500.0,0.00016846,2]
[351186497,1738401053695,-229.7,0.00016846,2]
[351186498,1738401053704,-500.0,0.00016846,2]
[351186499,1738401053714,-500.0,0.00016846,2]
[351186500,1738401053724,-600.0,0.00016846,2]
[351186501,1738401053733,-500.0,0.00016846,2]
[351186502,1738401053743,-517.08,0.00016846,2]
[351186503,1738401053752,-500.0,0.00016846,2]
[351186504,1738401053761,-200.0,0.00016846,2]
[351186505,1738401053770,-500.0,0.00016846,2]
[351186506,1738401053780,-500.0,0.00016846,2]
[351186507,1738401053789,-562.49,0.00016846,2]
[351186508,1738401053799,-500.0,0.00016846,2]
[351186509,1738401053808,-500.0,0.00016846,2]
[351186510,1738401053818,-500.0,0.00016846,2]
[351186511,1738401053828,-500.0,0.00016846,2]
[351186512,1738401053837,-500.0,0.00016846,2]
[351186513,1738401053848,-573.59879205,0.00016846,2]
[351186514,1738401053858,-222.55,0.00016846,2]
[351186515,1738401053867,-500.0,0.00016846,2]
[351186516,1738401053877,-500.0,0.00016846,2]
[351186517,1738401053886,-458.17,0.00016846,2]
[351186518,1738401053896,-500.0,0.00016846,2]
[351186519,1738401053907,-500.0,0.00016846,2]
[351186520,1738401053917,-500.0,0.00016846,2]
[351186521,1738401053926,-500.0,0.00016846,2]
[351186522,1738401053936,-500.0,0.00016846,2]
[351186523,1738401053946,-500.0,0.00016846,2]
[351186524,1738401053960,-500.0,0.00016846,2]
[351186525,1738401053971,-500.0,0.00016846,2]
[351186526,1738401053981,-500.0,0.00016846,2]
[351186527,1738401053990,-600.53,0.00016846,2]
[351186528,1738401054000,-500.0,0.00016846,2]
[351186529,1738401054009,-546.0,0.00016846,2]
[351186530,1738401054019,-500.0,0.00016846,2]
[351186531,1738401054028,-500.0,0.00016846,2]
[351186532,1738401054038,-500.0,0.00016846,2]
[351186533,1738401054047,-562.03,0.00016846,2]
[351186534,1738401054057,-441.96865411,0.00016846,2]
[351186535,1738401054070,-500.0,0.00016846,2]
[351186536,1738401054079,-638.59,0.00016846,2]
[351186537,1738401054089,-549.55,0.00016846,2]
[351186538,1738401054099,-377.19,0.00016846,2]
[351186539,1738401054108,-584.83,0.00016846,2]
[351186540,1738401054119,-423.94011047,0.00016846,2]
[351186541,1738401054129,-500.0,0.00016846,2]
[351186542,1738401054138,-500.0,0.00016846,2]
[351186543,1738401054148,-655.77,0.00016846,2]
[351186544,1738401054158,-1749.31,0.00016846,2]
[351186545,1738401054167,-1989.69,0.00016846,2]
[351186546,1738401054177,-1303.75,0.00016846,2]
[351186547,1738401054186,-500.0,0.00016846,2]
[351186548,1738401054195,-500.0,0.00016846,2]
[351186549,1738401054204,-449.5,0.00016846,2]
[351186550,1738401054214,-1317.82,0.00016846,2]
[351186551,1738401054223,-500.0,0.00016846,2]
[351186552,1738401054232,-1596.42,0.00016846,2]
[351186553,1738401054241,-500.0,0.00016846,2]
[351186554,1738401054250,-500.0,0.00016846,2]
[351186555,1738401054260,-1110.28,0.00016846,2]
[351186556,1738401054269,-575.64557403,0.00016846,2]
[351186557,1738401054279,-500.0,0.00016846,2]
[351186558,1738401054288,-1096.39,0.00016846,2]
[351186559,1738401054298,-500.0,0.00016846,2]
[351186560,1738401054307,-1242.54,0.00016846,2]
[351186561,1738401054316,-570.57,0.00016846,2]
[351186562,1738401054329,-1243.6,0.00016846,2]
[351186563,1738401054338,-500.0,0.00016846,2]
[351186564,1738401054347,-500.0,0.00016846,2]
[351186565,1738401054356,-637.31,0.00016846,2]
[351186566,1738401054365,-539.52,0.00016846,2]
[351186567,1738401054374,-516.7,0.00016846,2]
[351186568,1738401054383,-500.0,0.00016846,2]
[351186569,1738401054392,-500.0,0.00016846,2]
[351186570,1738401054401,-591.98,0.00016846,2]
[351186571,1738401054411,-500.0,0.00016846,2]
[351186572,1738401054420,-500.0,0.00016846,2]
[351186573,1738401054430,-605.5,0.00016846,2]
[351186574,1738401054439,-500.0,0.00016846,2]
[351186575,1738401054448,-500.0,0.00016846,2]
[351186576,1738401054457,-500.0,0.00016846,2]
[351186577,1738401054467,-261.7,0.00016846,2]